fUSD/lending_fUSD_20250911
["ID","MTS","AMOUNT","RATE_DAILY","PERIOD"]
[384931066,1757627553286,-400.0,0.00029863,7]
[384931067,1757627553296,-900.41,0.00029863,7]
[384931068,1757627553306,-897.52,0.00029863,7]
[384931069,1757627553316,-1924.73,0.00029863,7]
[384931070,1757627553326,-400.0,0.00029863,7]
[384931071,1757627553336,-2279.93,0.00029863,7]
[384931072,1757627553348,-2115.38,0.00029863,7]
[384931073,1757627553358,-400.0,0.00029863,7]
[384931074,1757627553368,-622.31,0.00029863,7]
[384931075,1757627553377,-1153.84,0.00029863,7]
[384931076,1757627553388,-400.0,0.00029863,7]
[384931077,1757627553398,-519.0,0.00029863,7]
[384931078,1757627553408,-1849.34,0.00029863,7]
[384931079,1757627553418,-400.0,0.00029863,7]
[384931080,1757627553428,-1244.32,0.00029863,7]
[384931081,1757627553438,-418.22,0.00029863,7]
[384931082,1757627553448,-1903.92,0.00029863,7]
[384931083,1757627553458,-926.52,0.00029863,7]
[384931084,1757627553468,-2054.75,0.00029863,7]
[384931085,1757627553478,-2269.52,0.00029863,7]
[384931086,1757627553488,-891.18,0.00029863,7]
[384931087,1757627553498,-774.47,0.00029863,7]
[384931088,1757627553508,-1816.52,0.00029863,7]
[384931089,1757627553518,-400.0,0.00029863,7]
[384931090,1757627553527,-1861.78,0.00029863,7]
[384931091,1757627553537,-1516.31,0.00029863,7]
[384931092,1757627553547,-1776.85,0.00029863,7]
[384931093,1757627553557,-400.0,0.00029863,7]
[384931094,1757627553567,-946.01,0.00029863,7]
[384931095,1757627553578,-1366.26,0.00029863,7]
[384931096,1757627553587,-400.0,0.00029863,7]
[384931097,1757627553597,-777.81,0.00029863,7]
[384931098,1757627553607,-2170.93,0.00029863,7]
[384931099,1757627553616,-619.87,0.00029863,7]
[384931100,1757627553626,-544.78,0.00029863,7]
[384931101,1757627553636,-400.0,0.00029863,7]
[384931102,1757627553645,-2122.23,0.00029863,7]
[384931103,1757627553656,-400.0,0.00029863,7]
[384931104,1757627553666,-1168.45,0.00029863,7]
[384931105,1757627553676,-928.76,0.00029863,7]
[384931106,1757627553686,-1186.62,0.00029863,7]
[384931107,1757627553696,-1039.0,0.00029863,7]
[384931108,1757627553706,-400.0,0.00029863,7]
[384931109,1757627553716,-1372.99,0.00029863,7]
[384931110,1757627553726,-525.55,0.00029863,7]
[384931111,1757627553736,-1647.59,0.00029863,7]
[384931112,1757627553746,-730.82,0.00029863,7]
[384931113,1757627553756,-451.69,0.00029863,7]
[384931114,1757627553765,-400.0,0.00029863,7]
[384931115,1757627553776,-1488.12,0.00029863,7]
[384931116,1757627553786,-2407.69,0.00029863,7]
[384931117,1757627553795,-480.12181927,0.00029863,7]
[384931118,1757627553805,-1661.64,0.00029863,7]
[384931119,1757627553815,-1847.44,0.00029863,7]
[384931120,1757627553825,-812.44,0.00029863,7]
[384931121,1757627553835,-2974.72,0.00029863,7]
[384931122,1757627553845,-2154.39,0.00029863,7]
[384931123,1757627553855,-330.58330154,0.00029863,7]
[384931124,1757627553865,-2409.57,0.00029863,7]
[384931125,1757627553875,-1505.1,0.00029863,7]
[384931126,1757627553885,-826.95,0.00029863,7]
[384931127,1757627553895,-2357.19,0.00029863,7]
[384931128,1757627553904,-415.59,0.00029863,7]
[384931129,1757627553914,-1209.2,0.00029863,7]
[384931130,1757627553925,-1222.72,0.00029863,7]
[384931131,1757627553935,-2029.82,0.00029863,7]
[384931132,1757627553945,-2376.92,0.00029863,7]
[384931133,1757627553954,-467.93,0.00029863,7]
[384931134,1757627553964,-1576.35,0.00029863,7]
[384931135,1757627553974,-400.0,0.00029863,7]
[384931136,1757627553984,-400.0,0.00029863,7]
[384931137,1757627553994,-619.65,0.00029863,7]
[384931138,1757627554004,-831.1,0.00029863,7]
[384931139,1757627554014,-2286.96,0.00029863,7]
[384931140,1757627554024,-400.0,0.00029863,7]
[384931141,1757627554034,-683.59,0.00029863,7]
[384931142,1757627554044,-663.74,0.00029863,7]
[384931143,1757627554054,-517.61,0.00029863,7]
[384931144,1757627554065,-753.25,0.00029863,7]
[384931145,1757627554076,-2533.56,0.00029863,7]
[384931146,1757627554086,-400.0,0.00029863,7]
[384931147,1757627554095,-1527.86,0.00029863,7]
[384931148,1757627554105,-400.0,0.00029863,7]
[384931149,1757627554115,-1146.83,0.00029863,7]
[384931150,1757627554125,-1894.11,0.00029863,7]
[384931151,1757627554135,-487.19,0.00029863,7]
[384931152,1757627554145,-621.23,0.00029863,7]
[384931153,1757627554155,-1816.71,0.00029863,7]
[384931154,1757627554165,-597.77,0.00029863,7]
[384931155,1757627554175,-636.93,0.00029863,7]
[384931156,1757627554184,-1978.38,0.00029863,7]
[384931157,1757627554194,-804.92,0.00029863,7]
[384931158,1757627554204,-1032.8,0.00029863,7]
[384931159,1757627554214,-400.0,0.00029863,7]
[384931160,1757627554224,-2188.58,0.00029863,7]
[384931161,1757627554234,-783.81,0.00029863,7]
[384931162,1757627554245,-1200.87,0.00029863,7]
[384931163,1757627554255,-1046.78,0.00029863,7]
[384931164,1757627554265,-1611.77,0.00029863,7]
[384931165,1757627554275,-434.23,0.00029863,7]
[384931166,1757627554286,-2777.49,0.00029863,7]
[384931167,1757627554296,-467.51,0.00029863,7]
[384931168,1757627554306,-2380.05,0.00029863,7]
[384931169,1757627554317,-400.0,0.00029863,7]
[384931170,1757627554327,-432.14,0.00029863,7]
[384931171,1757627554337,-936.21,0.00029863,7]
[384931172,1757627554351,-400.0,0.00029863,7]
[384931173,1757627554361,-612.46,0.00029863,7]
[384931174,1757627554371,-619.53,0.00029863,7]
[384931175,1757627554382,-400.0,0.00029863,7]
[384931176,1757627554392,-502.36,0.00029863,7]
[384931177,1757627554402,-726.74,0.00029863,7]
[384931178,1757627554413,-708.25,0.00029863,7]
[384931179,1757627554423,-400.0,0.00029863,7]
[384931180,1757627554434,-687.63,0.00029863,7]
[384931181,1757627554444,-2492.29,0.00029863,7]
[384931182,1757627554455,-525.18,0.00029863,7]
[384931183,1757627554465,-299.33590492,0.00029863,7]
[384931184,1757627554475,-1811.61,0.00029863,7]
[384931185,1757627554485,-2450.83,0.00029863,7]
[384931186,1757627554495,-3678.48,0.00029863,7]
[384931187,1757627554505,-451.31,0.00029863,7]
[384931188,1757627554515,-400.0,0.00029863,7]
[384931189,1757627554525,-1480.88,0.00029863,7]
[384931190,1757627554535,-400.0,0.00029863,7]
[384931191,1757627554545,-240.39409775,0.00029863,7]
[384931192,1757627554555,-824.46,0.00029863,7]
[384931193,1757627554565,-400.0,0.00029863,7]
[384931194,1757627554575,-615.43,0.00029863,7]
[384931195,1757627554585,-1426.55,0.00029863,7]
[384931196,1757627554596,-1733.33,0.00029863,7]
[384931197,1757627554606,-400.0,0.00029863,7]
[384931198,1757627554616,-1444.75,0.00029863,7]
[384931199,1757627554626,-656.5,0.00029863,7]
[384931200,1757627554636,-663.82,0.00029863,7]
[384931201,1757627554646,-400.0,0.00029863,7]
[384931202,1757627554656,-1413.55,0.00029863,7]
[384931203,1757627554667,-1859.7,0.00029863,7]
[384931204,1757627554676,-400.0,0.00029863,7]
[384931205,1757627554686,-1657.72,0.00029863,7]
[384931206,1757627554696,-1771.5,0.00029863,7]
[384931207,1757627554707,-400.0,0.00029863,7]
[384931208,1757627554717,-400.0,0.00029863,7]
[384931209,1757627554727,-1895.65,0.00029863,7]
[384931210,1757627554736,-1281.78,0.00029863,7]
[384931211,1757627554746,-1064.31,0.00029863,7]
[384931212,1757627554755,-1607.9,0.00029863,7]
[384931213,1757627554766,-618.96,0.00029863,7]
[384931214,1757627554776,-400.0,0.00029863,7]
[384931215,1757627554787,-555.14,0.00029863,7]
[384931216,1757627554797,-517.93491836,0.00029863,7]
[384931217,1757627554807,-8723.99,0.00029863,7]
[384931218,1757627555074,-400.0,0.00029863,7]
[384931219,1757627555084,-413.57,0.00029863,7]
[384931220,1757627555094,-10846.33,0.00029863,7]
[384931221,1757627555105,-2723.99,0.00029863,7]
[384931222,1757627555115,-2416.16,0.00029863,7]
[384931223,1757627555127,-1588.95,0.00029863,7]
[384931224,1757627555138,-1251.69,0.00029863,7]
[384931225,1757627555147,-400.0,0.00029863,7]
[384931226,1757627555157,-3367.99,0.00029863,7]
[384931227,1757627555167,-1485.57,0.00029863,7]
[384931228,1757627555177,-571.98,0.00029863,7]
[384931229,1757627555187,-580.95,0.00029863,7]
[384931230,1757627555197,-1511.45,0.00029863,7]
[384931231,1757627555207,-1402.77,0.00029863,7]
[384931232,1757627555218,-2512.68,0.00029863,7]
[384931233,1757627555228,-400.0,0.00029863,7]
[384931234,1757627555237,-2129.92,0.00029863,7]
[384931235,1757627555247,-1100.85,0.00029863,7]
[384931236,1757627555256,-1468.07,0.00029863,7]
[384931237,1757627555265,-1235.68,0.00029863,7]
[384931238,1757627555275,-400.0,0.00029863,7]
[384931239,1757627555285,-400.0,0.00029863,7]
[384931240,1757627555294,-1148.27,0.00029863,7]
[384931241,1757627555303,-659.2,0.00029863,7]
[384931242,1757627555312,-677.06,0.00029863,7]
[384931243,1757627555322,-4042.54,0.00029863,7]
[384931244,1757627555331,-1478.86,0.00029863,7]
[384931245,1757627555343,-596.08,0.00029863,7]
[384931246,1757627555354,-3121.58,0.00029863,7]
[384931247,1757627555364,-1327.37,0.00029863,7]
[384931248,1757627555374,-2116.65,0.00029863,7]
[384931249,1757627555385,-412.03,0.00029863,7]
[384931250,1757627555395,-400.0,0.00029863,7]
[384931251,1757627555405,-1719.45,0.00029863,7]
[384931252,1757627555415,-1710.12,0.00029863,7]
[384931253,1757627555426,-1450.37,0.00029863,7]
[384931254,1757627555436,-1987.08,0.00029863,7]
[384931255,1757627555446,-1612.89,0.00029863,7]
[384931256,1757627555455,-513.59,0.00029863,7]
[384931257,1757627555466,-836.01,0.00029863,7]
[384931258,1757627555475,-3415.13,0.00029863,7]
[384931259,1757627555485,-1717.5,0.00029863,7]
[384931260,1757627555495,-660.1,0.00029863,7]
[384931261,1757627555504,-2173.97,0.00029863,7]
[384931262,1757627555514,-3404.31,0.00029863,7]
[384931263,1757627555524,-2122.67,0.00029863,7]
[384931264,1757627555533,-262.98674499,0.00029863,7]
[384931265,1757627555543,-1824.59,0.00029863,7]
[384931266,1757627555554,-2940.84,0.00029863,7]
[384931267,1757627555565,-400.0,0.00029863,7]
[384931268,1757627555575,-2046.07,0.00029863,7]
[384931269,1757627555584,-400.0,0.00029863,7]
[384931270,1757627555594,-1664.51,0.00029863,7]
[384931271,1757627555603,-400.0,0.00029863,7]
[384931272,1757627555612,-2668.52,0.00029863,7]
[384931273,1757627555622,-1145.88,0.00029863,7]
[384931274,1757627555631,-400.0,0.00029863,7]
[384931275,1757627555641,-518.05839413,0.00029863,7]
[384931276,1757627555651,-1418.74,0.00029863,7]
[384931277,1757627555661,-1033.62,0.00029863,7]
[384931278,1757627555670,-400.0,0.00029863,7]
[384931279,1757627555680,-857.22,0.00029863,7]
[384931280,1757627555689,-400.0,0.00029863,7]
[384931281,1757627555699,-400.0,0.00029863,7]
[384931282,1757627555709,-400.0,0.00029863,7]
[384931283,1757627555718,-1785.27,0.00029863,7]
[384931284,1757627555729,-1768.54,0.00029863,7]
[384931285,1757627555738,-1525.18,0.00029863,7]
[384931286,1757627555748,-3561.21,0.00029863,7]
[384931287,1757627555758,-412.28,0.00029863,7]
[384931288,1757627555768,-1709.68,0.00029863,7]
[384931289,1757627555778,-440.38,0.00029863,7]
[384931290,1757627555788,-2318.27,0.00029863,7]
[384931291,1757627555798,-1281.61,0.00029863,7]
[384931292,1757627555807,-2011.65,0.00029863,7]
[384931293,1757627555817,-1166.63,0.00029863,7]
[384931294,1757627555827,-746.18,0.00029863,7]
[384931295,1757627555837,-400.0,0.00029863,7]
[384931296,1757627555847,-400.0,0.00029863,7]
[384931297,1757627555856,-400.0,0.00029863,7]
[384931298,1757627555866,-1306.49,0.00029863,7]
[384931299,1757627555875,-1825.7,0.00029863,7]
[384931300,1757627555884,-762.39,0.00029863,7]
[384931301,1757627555894,-3800.69,0.00029863,7]
[384931302,1757627555903,-329.13105948,0.00029863,7]
[384931303,1757627555912,-2183.28,0.00029863,7]
[384931304,1757627555921,-631.92,0.00029863,7]
[384931305,1757627555930,-2113.02,0.00029863,7]
[384931306,1757627555940,-412.34,0.00029863,7]
[384931307,1757627555949,-478.43,0.00029863,7]
[384931308,1757627555958,-764.83,0.00029863,7]
[384931309,1757627555969,-658.91,0.00029863,7]
[384931310,1757627555979,-2212.12,0.00029863,7]
[384931311,1757627555990,-400.0,0.00029863,7]
[384931312,1757627555999,-1409.6,0.00029863,7]
[384931313,1757627556008,-2621.3,0.00029863,7]
[384931314,1757627556018,-1935.52,0.00029863,7]
[384931315,1757627556027,-400.0,0.00029863,7]
[384931316,1757627556038,-792.93,0.00029863,7]
[384931317,1757627556047,-1641.57,0.00029863,7]
[384931318,1757627556058,-400.0,0.00029863,7]
[384931319,1757627556068,-2511.53,0.00029863,7]
[384931320,1757627556077,-415.19,0.00029863,7]
[384931321,1757627556086,-1999.25,0.00029863,7]
[384931322,1757627556097,-400.0,0.00029863,7]
[384931323,1757627556108,-935.63,0.00029863,7]
[384931324,1757627556118,-561.05,0.00029863,7]
[384931325,1757627556127,-1937.06,0.00029863,7]
[384931326,1757627556136,-622.55,0.00029863,7]
[384931327,1757627556145,-605.95,0.00029863,7]
[384931328,1757627556155,-625.67,0.00029863,7]
[384931329,1757627556165,-2434.87,0.00029863,7]
[384931330,1757627556174,-1967.02,0.00029863,7]
[384931331,1757627556184,-2064.83,0.00029863,7]
[384931332,1757627556194,-5081.16,0.00029863,7]
[384931333,1757627556203,-400.0,0.00029863,7]
[384931334,1757627556213,-2357.52,0.00029863,7]
[384931335,1757627556223,-1918.79,0.00029863,7]
[384931336,1757627556234,-688.97,0.00029863,7]
[384931337,1757627556243,-2563.41,0.00029863,7]
[384931338,1757627556253,-400.0,0.00029863,7]
[384931339,1757627556263,-400.0,0.00029863,7]
[384931340,1757627556272,-1782.99,0.00029863,7]
[384931341,1757627556282,-1378.05,0.00029863,7]
[384931342,1757627556291,-2353.03,0.00029863,7]
[384931343,1757627556301,-752.99,0.00029863,7]
[384931344,1757627556311,-400.0,0.00029863,7]
[384931345,1757627556320,-1193.85,0.00029863,7]
[384931346,1757627556330,-1178.69,0.00029863,7]
[384931347,1757627556339,-1935.24,0.00029863,7]
[384931348,1757627556352,-1221.61,0.00029863,7]
[384931349,1757627556361,-459.96,0.00029863,7]
[384931350,1757627556372,-2252.22,0.00029863,7]
[384931351,1757627556381,-735.02,0.00029863,7]
[384931352,1757627556391,-1279.89,0.00029863,7]
[384931353,1757627556400,-400.0,0.00029863,7]
[384931354,1757627556410,-2407.5,0.00029863,7]
[384931355,1757627556419,-2161.65,0.00029863,7]
[384931356,1757627556430,-1425.68,0.00029863,7]
[384931357,1757627556440,-1362.92,0.00029863,7]
[384931358,1757627556450,-1095.6,0.00029863,7]
[384931359,1757627556459,-2476.85,0.00029863,7]
[384931360,1757627556469,-1991.02,0.00029863,7]
[384931361,1757627556478,-457.55163332,0.00029863,7]
[384931362,1757627556488,-2430.43,0.00029863,7]
[384931363,1757627556498,-465.81,0.00029863,7]
[384931364,1757627556507,-2085.01,0.00029863,7]
[384931365,1757627556516,-2781.72,0.00029863,7]
[384931366,1757627556525,-1977.7,0.00029863,7]
[384931367,1757627556534,-400.0,0.00029863,7]
[384931368,1757627556543,-2696.49,0.00029863,7]
[384931369,1757627556555,-430.58,0.00029863,7]
[384931370,1757627556566,-3938.86,0.00029863,7]
[384931371,1757627556576,-2712.62,0.00029863,7]
[384931372,1757627556585,-4392.91,0.00029863,7]
[384931373,1757627556595,-1492.88,0.00029863,7]
[384931374,1757627556604,-400.0,0.00029863,7]
[384931375,1757627556613,-1464.34,0.00029863,7]
[384931376,1757627556622,-591.66,0.00029863,7]
[384931377,1757627556631,-400.0,0.00029863,7]
[384931378,1757627556641,-400.0,0.00029863,7]
[384931379,1757627556651,-666.94,0.00029863,7]
[384931380,1757627556660,-1806.44,0.00029863,7]
[384931381,1757627556669,-1981.45,0.00029863,7]
[384931382,1757627556679,-3388.27,0.00029863,7]
[384931383,1757627556689,-2436.65,0.00029863,7]
[384931384,1757627556698,-881.67,0.00029863,7]
[384931385,1757627556707,-406.24,0.00029863,7]
[384931386,1757627556717,-1172.06,0.00029863,7]
[384931387,1757627556727,-780.5,0.00029863,7]
[384931388,1757627556737,-554.15,0.00029863,7]
[384931389,1757627556747,-4294.22,0.00029863,7]
[384931390,1757627556756,-2452.85,0.00029863,7]
[384931391,1757627556766,-438.53,0.00029863,7]
[384931392,1757627556776,-604.66,0.00029863,7]
[384931393,1757627556785,-534.25,0.00029863,7]
[384931394,1757627556795,-2886.24,0.00029863,7]
[384931395,1757627556804,-400.0,0.00029863,7]
[384931396,1757627556814,-3147.12,0.00029863,7]
[384931397,1757627556824,-400.0,0.00029863,7]
[384931398,1757627556833,-2500.66,0.00029863,7]
[384931399,1757627556842,-1752.06,0.00029863,7]
[384931400,1757627556851,-1536.25,0.00029863,7]
[384931401,1757627556860,-3110.75,0.00029863,7]
[384931402,1757627556868,-3514.52,0.00029863,7]
[384931403,1757627556878,-1998.85,0.00029863,7]
[384931404,1757627556887,-851.92,0.00029863,7]
[384931405,1757627556896,-2234.85,0.00029863,7]
[384931406,1757627556906,-1639.17,0.00029863,7]
[384931407,1757627556915,-2407.64,0.00029863,7]
[384931408,1757627556924,-400.0,0.00029863,7]
[384931409,1757627556933,-1046.34,0.00029863,7]
[384931410,1757627556943,-1220.02,0.00029863,7]
[384931411,1757627556952,-2770.33,0.00029863,7]
[384931412,1757627556961,-482.39,0.00029863,7]
[384931413,1757627556971,-436.15,0.00029863,7]
[384931414,1757627556980,-400.0,0.00029863,7]
[384931415,1757627556989,-1846.46,0.00029863,7]
[384931416,1757627556999,-400.0,0.00029863,7]
[384931417,1757627557008,-2184.88,0.00029863,7]
[384931418,1757627557018,-1730.33,0.00029863,7]
[384931419,1757627557027,-1786.28,0.00029863,7]
[384931420,1757627557036,-1957.68,0.00029863,7]
[384931421,1757627557046,-1265.01,0.00029863,7]
[384931422,1757627557056,-407.19,0.00029863,7]
[384931423,1757627557065,-688.3,0.00029863,7]
[384931424,1757627557075,-2703.11,0.00029863,7]
[384931425,1757627557085,-678.34,0.00029863,7]
[384931426,1757627557094,-2568.73,0.00029863,7]
[384931427,1757627557104,-3106.86,0.00029863,7]
[384931428,1757627557113,-1591.84,0.00029863,7]
[384931429,1757627557123,-423.35,0.00029863,7]
[384931430,1757627557132,-2512.36,0.00029863,7]
[384931431,1757627557142,-2358.62,0.00029863,7]
[384931432,1757627557151,-655.76,0.00029863,7]
[384931433,1757627557161,-655.88,0.00029863,7]
[384931434,1757627557170,-1989.93,0.00029863,7]
[384931435,1757627557180,-400.0,0.00029863,7]
[384931436,1757627557189,-6625.15,0.00029863,7]
[384931437,1757627557199,-400.0,0.00029863,7]
[384931438,1757627557208,-1565.73,0.00029863,7]
[384931439,1757627557218,-2433.07,0.00029863,7]
[384931440,1757627557229,-400.0,0.00029863,7]
[384931441,1757627557239,-2320.6,0.00029863,7]
[384931442,1757627557249,-1949.62,0.00029863,7]
[384931443,1757627557258,-400.0,0.00029863,7]
[384931444,1757627557268,-2218.78,0.00029863,7]
[384931445,1757627557278,-3743.48,0.00029863,7]
[384931446,1757627557288,-581.88,0.00029863,7]
[384931447,1757627557298,-1700.41,0.00029863,7]
[384931448,1757627557308,-601.83,0.00029863,7]
[384931449,1757627557318,-400.0,0.00029863,7]
[384931450,1757627557328,-2332.54,0.00029863,7]
[384931451,1757627557338,-726.15,0.00029863,7]
[384931452,1757627557351,-2249.08,0.00029863,7]
[384931453,1757627557361,-2742.88,0.00029863,7]
[384931454,1757627557477,-877.79,0.00029863,7]
[384931455,1757627557488,-2125.99,0.00029863,7]
[384931456,1757627557498,-400.0,0.00029863,7]
[384931457,1757627557511,-400.0,0.00029863,7]
[384931458,1757627557521,-1691.78,0.00029863,7]
[384931459,1757627557531,-2438.57,0.00029863,7]
[384931460,1757627557541,-1723.17,0.00029863,7]
[384931461,1757627557550,-2192.92,0.00029863,7]
[384931462,1757627557559,-2371.58,0.00029863,7]
[384931463,1757627557569,-882.4,0.00029863,7]
[384931464,1757627557579,-2985.19,0.00029863,7]
[384931465,1757627557588,-2972.96,0.00029863,7]
[384931466,1757627557598,-849.58,0.00029863,7]
[384931467,1757627557608,-512.39,0.00029863,7]
[384931468,1757627557618,-3150.88,0.00029863,7]
[384931469,1757627557628,-2678.71,0.00029863,7]
[384931470,1757627557637,-1003.52,0.00029863,7]
[384931471,1757627557647,-764.35,0.00029863,7]
[384931472,1757627557657,-2578.26,0.00029863,7]
[384931473,1757627557667,-2234.94,0.00029863,7]
[384931474,1757627557676,-1462.94,0.00029863,7]
[384931475,1757627557685,-1828.11,0.00029863,7]
[384931476,1757627557695,-470.08,0.00029863,7]
[384931477,1757627557705,-1307.56,0.00029863,7]
[384931478,1757627557714,-400.0,0.00029863,7]
[384931479,1757627557723,-1772.99,0.00029863,7]
[384931480,1757627557732,-2097.33,0.00029863,7]
[384931481,1757627557742,-933.0,0.00029863,7]
[384931482,1757627557751,-952.28,0.00029863,7]
[384931483,1757627557760,-1662.68,0.00029863,7]
[384931484,1757627557770,-610.96,0.00029863,7]
[384931485,1757627557779,-7841.89,0.00029863,7]
[384931486,1757627557788,-400.0,0.00029863,7]
[384931487,1757627557799,-400.0,0.00029863,7]
[384931488,1757627557808,-1604.78,0.00029863,7]
[384931489,1757627557818,-1587.28,0.00029863,7]
[384931490,1757627557827,-2174.86,0.00029863,7]
[384931491,1757627557837,-11061.06,0.00029863,7]
[384931492,1757627557847,-1272.03,0.00029863,7]
[384931493,1757627557857,-400.0,0.00029863,7]
[384931494,1757627557866,-596.32,0.00029863,7]
[384931495,1757627557876,-565.46,0.00029863,7]
[384931496,1757627557885,-2131.53,0.00029863,7]
[384931497,1757627557894,-2498.42,0.00029863,7]
[384931498,1757627557904,-6488.57,0.00029863,7]
[384931499,1757627557914,-5525.7,0.00029863,7]
[384931500,1757627557923,-1601.69,0.00029863,7]
[384931501,1757627557932,-455.17,0.00029863,7]
[384931502,1757627557942,-1668.79,0.00029863,7]
[384931503,1757627557951,-1352.16,0.00029863,7]
[384931504,1757627557961,-11877.61,0.00029863,7]
[384931505,1757627557970,-2986.7,0.00029863,7]
[384931506,1757627557980,-400.0,0.00029863,7]
[384931507,1757627557989,-400.0,0.00029863,7]
[384931508,1757627557998,-2328.89,0.00029863,7]
[384931509,1757627558008,-4724.84,0.00029863,7]
[384931510,1757627558017,-400.0,0.00029863,7]
[384931511,1757627558031,-2071.12,0.00029863,7]
[384931512,1757627558040,-3292.32,0.00029863,7]
[384931513,1757627558050,-400.0,0.00029863,7]
[384931514,1757627558060,-400.0,0.00029863,7]
[384931515,1757627558069,-657.95,0.00029863,7]
[384931516,1757627558078,-2017.2,0.00029863,7]
[384931517,1757627558087,-2362.15,0.00029863,7]
[384931518,1757627558096,-1981.94,0.00029863,7]
[384931519,1757627558105,-914.7,0.00029863,7]
[384931520,1757627558114,-710.2,0.00029863,7]
[384931521,1757627558123,-847.93,0.00029863,7]
[384931522,1757627558132,-1045.52,0.00029863,7]
[384931523,1757627558142,-752.72,0.00029863,7]
[384931524,1757627558152,-2021.8,0.00029863,7]
[384931525,1757627558161,-2367.19,0.00029863,7]
[384931526,1757627558171,-1204.45,0.00029863,7]
[384931527,1757627558180,-1922.67,0.00029863,7]
[384931528,1757627558189,-2147.9,0.00029863,7]
[384931529,1757627558198,-400.0,0.00029863,7]
[384931530,1757627558208,-610.19,0.00029863,7]
[384931531,1757627558217,-737.4,0.00029863,7]
[384931532,1757627558226,-2005.27,0.00029863,7]
[384931533,1757627558236,-2282.8,0.00029863,7]
[384931534,1757627558245,-868.86,0.00029863,7]
[384931535,1757627558255,-2067.86,0.00029863,7]
[384931536,1757627558264,-1662.86,0.00029863,7]
[384931537,1757627558273,-339.78,0.00029863,7]
[384931538,1757627558283,-581.46,0.00029863,7]
[384931539,1757627558292,-973.3,0.00029863,7]
[384931540,1757627558302,-2104.81,0.00029863,7]
[384931541,1757627558311,-901.74,0.00029863,7]
[384931542,1757627558320,-3042.61,0.00029863,7]
[384931543,1757627558330,-633.32,0.00029863,7]
[384931544,1757627558340,-1564.75,0.00029863,7]
[384931545,1757627558352,-406.9,0.00029863,7]
[384931546,1757627558361,-2798.29,0.00029863,7]
[384931547,1757627558371,-473.92,0.00029863,7]
[384931548,1757627558381,-1232.08,0.00029863,7]
[384931549,1757627558390,-825.48,0.00029863,7]
[384931550,1757627558400,-1649.61,0.00029863,7]
[384931551,1757627558409,-514.01605516,0.00029863,7]
[384931552,1757627558419,-400.0,0.00029863,7]
[384931553,1757627558428,-401.49,0.00029863,7]
[384931554,1757627558438,-493.86,0.00029863,7]
[384931555,1757627558447,-2428.81,0.00029863,7]
[384931556,1757627558456,-545.25,0.00029863,7]
[384931557,1757627558465,-3292.07,0.00029863,7]
[384931558,1757627558474,-400.0,0.00029863,7]
[384931559,1757627558483,-1770.26,0.00029863,7]
[384931560,1757627558492,-400.0,0.00029863,7]
[384931561,1757627558501,-400.0,0.00029863,7]
[384931562,1757627558511,-1537.35,0.00029863,7]
[384931563,1757627558520,-575.7,0.00029863,7]
[384931564,1757627558530,-2235.0,0.00029863,7]
[384931565,1757627558539,-250.28833903,0.00029863,7]